[Event "8th Palmanova Open 2019"]
[Site "Palmanova"]
[Date "2019.12.08"]
[Round "4.5"]
[White "Forti, Francesco"]
[Black "Dappiano, Andrea"]
[Result "1/2-1/2"]
[ECO "A90"]
[WhiteElo "1903"]
[BlackElo "2258"]
[Annotator "NA"]
[PlyCount "96"]
[EventDate "2019.12.06"]
[EventType "swiss"]
[EventCountry "ITA"]
[SourceTitle "playchess.com"]
[Source "ChessBase"]
[SourceQuality "1"]
[TimeControl "5400+30"]

1. d4 {[%emt 0:00:00]} e6 {[%emt 0:02:12]} 2. c4 {[%emt 0:01:23]} f5 {[%emt 0:00:30]} 3. g3 {[%emt 0:00:29]} Nf6 {[%emt 0:00:05]} 4. Bg2 {[%emt 0:00:40]} d5 {[%emt 0:00:17]} 5. Nh3 {[%emt 0:00:39]} c6 {[%emt 0:01:04]} 6. O-O {[%emt 0:01:22]} Bd6 {[%emt 0:01:25]} 7. Bf4 {[%emt 0:00:55]} Be7 {[%emt 0:00:16]} 8. Nc3 {[%emt 0:04:34]} O-O {[%emt 0:02:35]} 9. Bxb8 {[%emt 1:24:28]} Rxb8 {[%emt 0:00:08]} 10. Nf4 $17 {[%emt 0:00:00]} (10. cxd5 $11 {remains equal.} exd5 11. Rc1) 10... Ne4 {[%emt 0:16:49]} 11. Nd3 {[%emt 0:00:00]} Bd7 {[%emt 0:09:10]} 12. Ne5 {[%emt 0:00:00]} Be8 {[%emt 0:00:34]} 13. Nxe4 {[%emt 0:00:00]} dxe4 {[%emt 1:01:25]} 14. f3 {[%emt 0:00:00]} Bg5 {[%emt 0:00:00]} 15. f4 {[%emt 0:00:00]} Be7 {[%emt 0:00:00]} 16. c5 {[%emt 0:00:00]} b6 {[%emt 0:00:00]} 17. b4 {[%emt 0:00:00]} Qd5 {[%emt 0:00:00]} 18. e3 {[%emt 0:00:00]} g5 {[%emt 0:00:00]} 19. Qa4 {[%emt 0:00:00]} a5 {[%emt 0:00:00]} 20. a3 {[%emt 0:00:00]} gxf4 {[%emt 0:00:00]} 21. gxf4 {[%emt 0:00:00]} bxc5 {[%emt 0:00:00]} 22. bxc5 {[%emt 0:00:00]} Qb3 {[%emt 0:00:00]} 23. Qxb3 {[%emt 0:00:00]} Rxb3 {[%emt 0:00:00]} 24. Nc4 {[%emt 0:00:00]} Bd7 {[%emt 0:00:00]} 25. Kf2 {[%emt 0:00:00]} Bh4+ {[%emt 0:00:00]} 26. Kg1 {[%emt 0:00:00]} Rfb8 {[%emt 0:00:00]} 27. Rfc1 {[%emt 0:03:05]} Be8 {[%emt 0:00:00]} 28. Bf1 {[%emt 0:00:58]} Bh5 {[%emt 0:00:00]} 29. Rc2 {[%emt 0:02:51]} Bd8 {[%emt 0:00:00]} 30. Raa2 {[%emt 0:01:13]} Bc7 {[%emt 0:00:00]} 31. Rab2 {[%emt 0:00:44]} a4 {[%emt 0:00:00]} 32. Rxb3 {[%emt 0:00:53]} Rxb3 {[%emt 0:00:00]} 33. Rb2 {[%emt 0:00:46]} Kf8 {[%emt 0:01:08]} 34. Rxb3 {[%emt 0:02:00]} axb3 {[%emt 0:00:08]} 35. Kf2 {[%emt 0:00:00]} Bd1 {[%emt 0:03:48]} 36. Ke1 {[%emt 0:00:00]} Bc2 {[%emt 0:00:04]} 37. Kd2 {[%emt 0:00:00]} Ke8 {[%emt 0:02:06]} 38. Be2 {[%emt 0:00:00]} Bd8 {[%emt 0:00:21]} 39. Bd1 {[%emt 0:00:05]} Bd3 {[%emt 0:01:04]} 40. Bxb3 {[%emt 0:00:01]} Bxc4 {[%emt 0:00:40]} 41. Bxc4 {[%emt 0:03:24]} Kd7 {[%emt 0:00:08]} 42. Ke2 {[%emt 0:00:00]} h6 {[%emt 0:00:36]} 43. Kd2 {[%emt 0:00:00]} h5 {[%emt 0:00:17]} 44. h3 {[%emt 0:00:00]} h4 {[%emt 0:00:06]} 45. Ke2 {[%emt 0:00:00]} Ba5 {[%emt 0:00:01]} 46. Kf2 {[%emt 0:00:00]} Bc3 {[%emt 0:00:26]} 47. Ke2 {[%emt 0:00:00]} Bb2 {[%emt 0:00:06]} 48. a4 {[%emt 0:00:00]} Bc3 {[%emt 0:00:04]} 1/2-1/2

[Event "8th Palmanova Open 2019"]
[Site "Palmanova"]
[Date "2019.12.08"]
[Round "4.6"]
[White "Savanovic, Maksim"]
[Black "Belli, Giorgio"]
[Result "0-1"]
[ECO "A47"]
[WhiteElo "2062"]
[BlackElo "2136"]
[Annotator "NA"]
[PlyCount "78"]
[EventDate "2019.12.06"]
[EventType "swiss"]
[EventCountry "ITA"]
[SourceTitle "playchess.com"]
[Source "ChessBase"]
[SourceQuality "1"]
[TimeControl "5400+30"]

1. d4 {[%emt 0:03:33]} Nf6 {[%emt 0:14:06]} 2. Bf4 {[%emt 0:00:02]} e6 {[%emt 0:00:54]} 3. e3 {[%emt 0:00:02]} b6 {[%emt 0:00:07]} 4. Nf3 {[%emt 0:00:06]} Bb7 {[%emt 0:00:09]} 5. Nbd2 {[%emt 0:00:07]} Be7 {[%emt 0:00:19]} 6. h3 {[%emt 0:00:09]} O-O {[%emt 0:00:14]} 7. Bd3 {[%emt 0:00:08]} c5 {[%emt 0:00:20]} 8. c3 {[%emt 0:00:03]} d6 {[%emt 0:01:02]} 9. O-O {[%emt 0:00:07]} Nc6 {[%emt 0:00:21]} 10. Qe2 {[%emt 0:00:31]} Rc8 $11 {[%emt 0:01:17]} 11. Bh2 {[%emt 0:17:07]} Re8 {[%emt 0:00:42]} 12. a3 {[%emt 0:02:56]} Bf8 {[%emt 0:03:00]} 13. e4 {[%emt 0:02:46]} d5 {[%emt 0:05:15]} 14. e5 {[%emt 0:07:06]} Nd7 {[%emt 0:00:34]} 15. Qe3 {[%emt 0:09:35]} f6 {[%emt 0:05:13]} 16. Qf4 {[%emt 0:16:59]} g6 {[%emt 0:04:09]} 17. h4 {[%emt 0:02:37]} Bg7 {[%emt 0:07:44]} 18. Rae1 {[%emt 0:06:03]} Rf8 {[%emt 0:02:57]} 19. Qg4 {[%emt 0:01:06]} f5 {[%emt 0:00:29]} 20. Qg3 {[%emt 0:04:29]} Bh6 {[%emt 0:04:57]} 21. Re2 {[%emt 0:01:52]} a6 {[%emt 0:03:57]} 22. Qh3 {[%emt 0:00:56]} b5 {[%emt 0:02:30]} 23. g4 {[%emt 0:00:27]} Ne7 {[%emt 0:12:45]} 24. Kh1 {[%emt 0:03:41]} Kf7 {[%emt 0:05:00]} 25. h5 {[%emt 0:02:48]} Rh8 {[%emt 0:01:12]} 26. Nh4 {[%emt 0:02:50]} Ke8 {[%emt 0:03:55]} 27. hxg6 {[%emt 0:05:20]} hxg6 {[%emt 0:00:22]} 28. Nxg6 {[%emt 0:02:09]} Nxg6 {[%emt 0:00:12]} 29. gxf5 {[%emt 0:02:19]} Bf4 {[%emt 0:01:55]} 30. Qg4 {[%emt 0:01:51]} Rxh2+ {[%emt 0:05:34]} 31. Kg1 {[%emt 0:00:01]} Rh6 {[%emt 0:01:33]} 32. fxe6 {[%emt 0:01:50]} Ndf8 {[%emt 0:00:53]} 33. Nf3 {[%emt 0:02:22]} Qe7 {[%emt 0:01:19]} 34. Kg2 {[%emt 0:00:52]} Nh4+ {[%emt 0:00:57]} 35. Nxh4 {[%emt 0:00:40]} Qxh4 {[%emt 0:01:11]} 36. Qxh4 {[%emt 0:00:27]} Rxh4 {[%emt 0:00:05]} 37. Bf5 {[%emt 0:00:28]} Rc7 {[%emt 0:01:19]} 38. Kf3 {[%emt 0:00:01]} Rg7 {[%emt 0:00:23]} 39. Ree1 {[%emt 0:00:43]} Bh2 {[%emt 0:10:39] Ke4} 0-1

[Event "8th Palmanova Open 2019"]
[Site "Palmanova"]
[Date "2019.12.08"]
[Round "4.7"]
[White "Hercegovac, Neven"]
[Black "Gregoric, Andraz"]
[Result "0-1"]
[ECO "C50"]
[WhiteElo "2003"]
[BlackElo "2036"]
[Annotator "NA"]
[PlyCount "56"]
[EventDate "2019.12.06"]
[EventType "swiss"]
[EventCountry "ITA"]
[SourceTitle "playchess.com"]
[Source "ChessBase"]
[SourceQuality "1"]
[TimeControl "5400+30"]

1. e4 {[%emt 0:00:00]} e5 {[%emt 0:02:26]} 2. Nf3 {[%emt 0:00:00]} Nc6 {[%emt 0:00:05]} 3. Bc4 {[%emt 0:00:00]} Bc5 {[%emt 0:00:07]} 4. O-O {[%emt 0:00:06]} Nf6 {[%emt 0:00:13]} 5. d4 {[%emt 0:00:18]} Bxd4 {[%emt 0:01:02]} 6. Nxd4 {[%emt 0:00:11]} Nxd4 {[%emt 0:00:04]} 7. f4 {[%emt 0:00:19]} d6 {[%emt 0:00:25]} 8. fxe5 {[%emt 0:00:14]} dxe5 {[%emt 0:00:19]} 9. Bg5 {[%emt 0:00:13]} Qe7 {[%emt 0:00:34]} 10. Na3 {[%emt 0:00:20]} Qc5 $14 {[%emt 0:11:37]} (10... Rg8 $15) 11. Kh1 {[%emt 0:13:44]} Be6 {[%emt 0:00:57]} 12. Bxe6 {[%emt 0:08:40]} Nxe6 {[%emt 0:00:13]} 13. Bxf6 {[%emt 0:00:08]} gxf6 {[%emt 0:00:04]} 14. Rxf6 {[%emt 0:01:43]} Qe7 {[%emt 0:02:21]} 15. Rf2 {[%emt 0:01:26]} Rd8 {[%emt 0:05:28]} 16. Rd2 {[%emt 0:01:58]} O-O {[%emt 0:06:37]} 17. c3 {[%emt 0:06:18]} Qg5 {[%emt 0:03:15]} 18. Rxd8 {[%emt 0:07:56]} Rxd8 {[%emt 0:00:05]} 19. Qf3 {[%emt 0:00:10]} Qf4 {[%emt 0:22:19]} 20. Qxf4 {[%emt 0:09:05]} Nxf4 {[%emt 0:00:19]} 21. Nc4 {[%emt 0:00:10]} f6 {[%emt 0:07:11]} 22. a4 {[%emt 0:02:16]} Nd3 {[%emt 0:00:19]} 23. Rf1 {[%emt 0:02:51]} Nf2+ {[%emt 0:00:24]} 24. Kg1 {[%emt 0:00:58]} Nxe4 {[%emt 0:00:08]} 25. Na5 {[%emt 0:02:10]} Kg7 {[%emt 0:01:30]} 26. Nxb7 {[%emt 0:00:54]} Rb8 {[%emt 0:00:23]} 27. Na5 {[%emt 0:00:06]} Rxb2 {[%emt 0:00:12]} 28. Rc1 {[%emt 0:01:00]} Ra2 {[%emt 0:00:55]} 0-1

[Event "8th Palmanova Open 2019"]
[Site "Palmanova"]
[Date "2019.12.08"]
[Round "4.8"]
[White "Bordin, Silvia"]
[Black "Laco, Giuseppe"]
[Result "0-1"]
[ECO "B42"]
[WhiteElo "1905"]
[BlackElo "1972"]
[Annotator "NA"]
[PlyCount "138"]
[EventDate "2019.12.06"]
[EventType "swiss"]
[EventCountry "ITA"]
[SourceTitle "playchess.com"]
[Source "ChessBase"]
[SourceQuality "1"]
[TimeControl "5400+30"]

1. e4 {[%emt 0:00:00]} c5 {[%emt 0:00:00]} 2. Nf3 {[%emt 0:00:07]} e6 {[%emt 0:00:28]} 3. d4 {[%emt 0:00:30]} cxd4 {[%emt 0:00:06]} 4. Nxd4 {[%emt 0:00:32]} a6 {[%emt 0:00:45]} 5. Bd3 {[%emt 0:00:28]} b5 {[%emt 0:01:12]} 6. Qe2 {[%emt 0:04:36]} Bb7 {[%emt 0:00:30]} 7. O-O {[%emt 0:03:34]} Qc7 {[%emt 0:01:50]} 8. c4 {[%emt 0:08:24]} bxc4 {[%emt 0:01:52]} 9. Bxc4 {[%emt 0:00:27]} Qe5 $11 {[%emt 0:00:15]} 10. Nb3 {[%emt 0:14:15]} Qxe4 {[%emt 0:00:43]} 11. Qxe4 {[%emt 0:00:34]} Bxe4 {[%emt 0:00:02]} 12. Nc3 {[%emt 0:00:20]} Bc6 {[%emt 0:01:36]} 13. Re1 {[%emt 0:02:40]} Bb4 {[%emt 0:01:41]} 14. Bd2 {[%emt 0:01:07]} Ne7 {[%emt 0:00:24]} 15. a3 {[%emt 0:05:40]} Bd6 {[%emt 0:01:25]} 16. Rac1 {[%emt 0:10:43]} Bc7 {[%emt 0:01:06]} 17. Nd4 {[%emt 0:07:30]} Bb6 {[%emt 0:01:53]} 18. Nxc6 {[%emt 0:02:40]} Nbxc6 {[%emt 0:00:57]} 19. Bf4 {[%emt 0:00:59]} O-O {[%emt 0:01:57]} 20. Bd6 {[%emt 0:01:29]} Rfc8 {[%emt 0:00:21]} 21. b3 {[%emt 0:06:38]} Nf5 {[%emt 0:00:24]} 22. Ne4 {[%emt 0:00:39]} Nxd6 {[%emt 0:01:10]} 23. Nxd6 {[%emt 0:00:10]} Rcb8 {[%emt 0:01:03]} 24. b4 {[%emt 0:01:43]} g6 {[%emt 0:04:31]} 25. h3 {[%emt 0:03:35]} Bd8 {[%emt 0:05:04]} 26. Rc2 {[%emt 0:02:51]} Ra7 {[%emt 0:01:29]} 27. Rd1 {[%emt 0:00:38]} Ne5 {[%emt 0:03:41]} 28. Be2 {[%emt 0:00:39]} f5 {[%emt 0:00:29]} 29. f4 {[%emt 0:01:42]} Nf7 {[%emt 0:00:18]} 30. Rcd2 {[%emt 0:00:21]} Bb6+ {[%emt 0:01:03]} 31. Kf1 {[%emt 0:00:30]} Be3 {[%emt 0:11:06]} 32. Rd3 {[%emt 0:00:21]} Nxd6 {[%emt 0:02:18]} 33. Rxd6 {[%emt 0:00:10]} Bxf4 {[%emt 0:00:20]} 34. Rxd7 {[%emt 0:00:06]} Rxd7 {[%emt 0:01:13]} 35. Rxd7 {[%emt 0:00:06]} Rb6 {[%emt 0:00:25]} 36. Ra7 {[%emt 0:00:28]} Bc1 {[%emt 0:01:09]} 37. Rxa6 {[%emt 0:01:16]} Rxa6 {[%emt 0:00:10]} 38. Bxa6 {[%emt 0:00:09]} Bxa3 {[%emt 0:00:02]} 39. Bc4 {[%emt 0:00:13]} Kf7 {[%emt 0:00:23]} 40. b5 {[%emt 0:00:11]} Bc5 {[%emt 0:00:02]} 41. Ke2 {[%emt 0:00:19]} Kf6 {[%emt 0:01:33]} 42. Kf3 {[%emt 0:00:28]} e5 {[%emt 0:00:50]} 43. Bg8 {[%emt 0:00:46]} h6 {[%emt 0:01:08]} 44. Bc4 {[%emt 0:01:14]} g5 {[%emt 0:02:08]} 45. Bg8 {[%emt 0:02:01]} h5 {[%emt 0:01:13]} 46. Bc4 {[%emt 0:01:09]} e4+ {[%emt 0:00:45]} 47. Ke2 {[%emt 0:00:12]} h4 {[%emt 0:00:22]} 48. Kf1 {[%emt 0:01:12]} Ke5 {[%emt 0:00:34]} 49. Bf7 {[%emt 0:02:22]} Kf4 {[%emt 0:00:50]} 50. Be6 {[%emt 0:00:30]} g4 {[%emt 0:00:13]} 51. hxg4 {[%emt 0:02:18]} Kxg4 {[%emt 0:00:03]} 52. Ke2 {[%emt 0:00:41]} Kf4 {[%emt 0:00:06]} 53. Bc8 {[%emt 0:01:16]} Kg5 {[%emt 0:04:29]} 54. Bd7 {[%emt 0:00:15]} h3 {[%emt 0:04:11]} 55. gxh3 {[%emt 0:00:07]} f4 {[%emt 0:00:06]} 56. Bg4 {[%emt 0:08:02]} Kh4 {[%emt 0:00:11]} 57. Bf5 {[%emt 0:01:13]} f3+ {[%emt 0:00:18]} 58. Kf1 {[%emt 0:00:14]} e3 {[%emt 0:00:09]} 59. Bd3 {[%emt 0:00:13]} Kxh3 {[%emt 0:00:20]} 60. Bf5+ {[%emt 0:00:19]} Kg3 {[%emt 0:00:06]} 61. Bd3 {[%emt 0:00:09]} Kf4 {[%emt 0:00:13]} 62. b6 {[%emt 0:01:37]} Bxb6 {[%emt 0:00:03]} 63. Bb5 {[%emt 0:00:14]} Ke5 {[%emt 0:00:16]} 64. Ke1 {[%emt 0:02:00]} Ba5+ {[%emt 0:00:11]} 65. Kf1 {[%emt 0:01:09]} Kd4 {[%emt 0:00:19]} 66. Ba6 {[%emt 0:00:40]} Kc3 {[%emt 0:02:22]} 67. Ke1 {[%emt 0:02:18]} Kc2+ {[%emt 0:00:13]} 68. Kf1 {[%emt 0:00:22]} Kd2 {[%emt 0:00:03]} 69. Kg1 {[%emt 0:01:00]} e2 {[%emt 0:00:11]} 0-1

[Event "8th Palmanova Open 2019"]
[Site "Palmanova"]
[Date "2019.12.08"]
[Round "4.9"]
[White "Bozza, Gabriele"]
[Black "Bisaro, Andrea"]
[Result "0-1"]
[ECO "D52"]
[WhiteElo "1948"]
[BlackElo "1845"]
[Annotator "NA"]
[PlyCount "100"]
[EventDate "2019.12.06"]
[EventType "swiss"]
[EventCountry "ITA"]
[SourceTitle "playchess.com"]
[Source "ChessBase"]
[SourceQuality "1"]
[TimeControl "5400+30"]

1. d4 {[%emt 0:05:10]} d5 {[%emt 0:00:00]} 2. c4 {[%emt 0:00:12]} c6 {[%emt 0:00:00]} 3. Nf3 {[%emt 0:00:09]} Nf6 {[%emt 0:00:18]} 4. Nc3 {[%emt 0:00:00]} e6 {[%emt 0:00:54]} 5. Bg5 {[%emt 0:00:39]} Nbd7 {[%emt 0:01:18]} 6. e3 {[%emt 0:00:25]} Qa5 {[%emt 0:02:04]} 7. cxd5 {[%emt 0:00:59]} exd5 {[%emt 0:02:15]} 8. Bxf6 {[%emt 0:01:53]} Nxf6 {[%emt 0:00:20]} 9. Bd3 {[%emt 0:00:43]} Be7 {[%emt 0:10:17]} 10. Qc2 $11 {[%emt 0:00:33]} O-O {[%emt 0:06:35]} 11. a3 {[%emt 0:00:13]} Bg4 {[%emt 0:10:44]} 12. Ne5 {[%emt 0:01:16]} Be6 {[%emt 0:01:48]} 13. O-O {[%emt 0:00:25]} h6 {[%emt 0:01:46]} 14. f4 {[%emt 0:02:26]} Rfe8 {[%emt 0:10:30]} 15. Rae1 {[%emt 0:04:19]} Bd6 {[%emt 0:02:14]} 16. Kh1 {[%emt 0:03:06]} a6 {[%emt 0:07:01]} 17. b4 {[%emt 0:03:07]} Qc7 {[%emt 0:01:31]} 18. Na4 {[%emt 0:00:53]} Rad8 {[%emt 0:03:15]} 19. Nc5 {[%emt 0:01:37]} Bxc5 {[%emt 0:06:54]} 20. bxc5 {[%emt 0:01:02]} Re7 {[%emt 0:00:19]} 21. f5 {[%emt 0:10:15]} Bc8 {[%emt 0:01:53]} 22. Qf2 {[%emt 0:04:55]} Nh7 {[%emt 0:08:59]} 23. Qh4 {[%emt 0:10:15]} Rde8 {[%emt 0:05:41]} 24. f6 {[%emt 0:08:14]} Nxf6 {[%emt 0:05:13]} 25. Rxf6 {[%emt 0:01:12]} gxf6 {[%emt 0:00:04]} 26. Qxh6 {[%emt 0:01:50]} Rxe5 {[%emt 0:00:46]} 27. Bh7+ {[%emt 0:00:32]} Kh8 {[%emt 0:00:13]} 28. dxe5 {[%emt 0:00:25]} Qxe5 {[%emt 0:01:15]} 29. Bf5+ {[%emt 0:00:33]} Kg8 {[%emt 0:00:14]} 30. Qh7+ {[%emt 0:00:16]} Kf8 {[%emt 0:00:22]} 31. Bxc8 {[%emt 0:00:18]} Qc3 {[%emt 0:00:58]} 32. Rf1 {[%emt 0:02:13]} Rxe3 {[%emt 0:00:33]} 33. Qh4 {[%emt 0:05:19]} Qe5 {[%emt 0:02:56]} 34. Bxb7 {[%emt 0:03:49]} Qe6 {[%emt 0:00:26]} 35. Bxa6 {[%emt 0:07:54]} Rxa3 {[%emt 0:00:42]} 36. Bb7 {[%emt 0:00:13]} Re3 {[%emt 0:01:04]} 37. h3 {[%emt 0:00:48]} Ke7 {[%emt 0:01:02]} 38. Qf4 {[%emt 0:00:24]} Qe5 {[%emt 0:03:15]} 39. Bxc6 {[%emt 0:01:57]} d4 {[%emt 0:00:21]} 40. Ba4 {[%emt 0:03:42]} Rc3 {[%emt 0:01:11]} 41. c6 {[%emt 0:02:30]} d3 {[%emt 0:00:11]} 42. Qb4+ {[%emt 0:05:22]} Qc5 {[%emt 0:01:41]} 43. Qb7+ {[%emt 0:02:34]} Kf8 {[%emt 0:01:01]} 44. Qc8+ {[%emt 0:01:33]} Kg7 {[%emt 0:00:09]} 45. Qg4+ {[%emt 0:00:22]} Kf8 {[%emt 0:00:04]} 46. Qh4 {[%emt 0:02:13]} d2 {[%emt 0:01:14]} 47. Qxf6 {[%emt 0:00:21]} Qc4 {[%emt 0:00:06]} 48. Qh6+ {[%emt 0:03:25]} Kg8 {[%emt 0:00:30]} 49. Qxd2 {[%emt 0:00:15]} Qxf1+ {[%emt 0:00:04]} 50. Kh2 {[%emt 0:00:15]} Qf6 {[%emt 0:01:03]} 0-1

[Event "8th Palmanova Open 2019"]
[Site "Palmanova"]
[Date "2019.12.08"]
[Round "5.1"]
[White "Zamengo, Fulvio"]
[Black "Lekic, Dusan"]
[Result "1-0"]
[ECO "A12"]
[WhiteElo "2277"]
[BlackElo "2291"]
[Annotator "NA"]
[PlyCount "45"]
[EventDate "2019.12.06"]
[EventType "swiss"]
[EventCountry "ITA"]
[SourceTitle "playchess.com"]
[Source "ChessBase"]
[SourceQuality "1"]
[TimeControl "5400+30"]

1. e3 {[%emt 0:00:00]} Nf6 {[%emt 0:00:21]} 2. b3 {[%emt 0:00:00]} d5 {[%emt 0:01:03]} 3. Bb2 {[%emt 0:00:06]} Bf5 {[%emt 0:01:24]} 4. c4 {[%emt 0:00:11]} e6 {[%emt 0:01:48]} 5. Nf3 {[%emt 0:00:17]} h6 {[%emt 0:01:16]} 6. Be2 {[%emt 0:03:54]} c6 {[%emt 0:04:36]} 7. Ne5 {[%emt 0:09:05]} Nbd7 {[%emt 0:01:13]} 8. f4 {[%emt 0:00:08]} Nxe5 {[%emt 0:11:56]} 9. fxe5 {[%emt 0:05:30]} Ng4 {[%emt 0:02:01]} 10. cxd5 {[%emt 0:14:18]} Qh4+ {[%emt 0:07:26]} 11. g3 {[%emt 0:00:06]} Qg5 {[%emt 0:00:21]} 12. dxc6 {[%emt 0:14:33]} O-O-O {[%emt 0:26:24]} 13. cxb7+ {[%emt 0:08:00]} Kb8 {[%emt 0:00:18]} 14. Bxg4 {[%emt 0:05:51]} Bxg4 {[%emt 0:00:09]} 15. Qc2 {[%emt 0:00:04]} Qh5 {[%emt 0:04:31]} 16. Bd4 {[%emt 0:09:50]} Kxb7 {[%emt 0:04:12]} 17. Qe4+ {[%emt 0:02:55]} Kb8 {[%emt 0:00:24]} 18. O-O {[%emt 0:00:07]} Be2 {[%emt 0:06:09]} 19. Nc3 {[%emt 0:00:06]} Bxf1 {[%emt 0:01:30]} 20. Rxf1 {[%emt 0:00:08]} Be7 {[%emt 0:02:14]} 21. Qc6 {[%emt 0:02:48]} Rxd4 {[%emt 0:01:32]} 22. exd4 {[%emt 0:00:07]} Rd8 {[%emt 0:00:13]} 23. Nb5 {[%emt 0:01:25]} 1-0

[Event "8th Palmanova Open 2019"]
[Site "Palmanova"]
[Date "2019.12.08"]
[Round "5.2"]
[White "Ghersinich, Enrico"]
[Black "Margl, Roland"]
[Result "0-1"]
[ECO "B13"]
[WhiteElo "2106"]
[BlackElo "2279"]
[Annotator "NA"]
[PlyCount "96"]
[EventDate "2019.12.06"]
[EventType "swiss"]
[EventCountry "ITA"]
[SourceTitle "playchess.com"]
[Source "ChessBase"]
[SourceQuality "1"]
[TimeControl "5400+30"]

1. d4 {[%emt 0:00:00]} d5 {[%emt 0:02:41]} 2. Bf4 {[%emt 0:00:11]} c5 {[%emt 0:00:36]} 3. e3 {[%emt 0:00:09]} cxd4 {[%emt 0:01:54]} 4. exd4 {[%emt 0:00:15]} Nc6 {[%emt 0:00:05]} 5. c3 {[%emt 0:01:55]} Bf5 {[%emt 0:03:42]} 6. Qb3 {[%emt 0:05:16]} Qd7 {[%emt 0:00:42]} 7. Nf3 {[%emt 0:00:24]} e6 {[%emt 0:02:36]} 8. Bb5 {[%emt 0:03:31]} Bd6 {[%emt 0:02:48]} 9. Ne5 {[%emt 0:03:21]} Qc7 {[%emt 0:00:14]} 10. Qa4 {[%emt 0:07:31]} Nge7 {[%emt 0:00:25]} 11. Bxc6+ {[%emt 0:09:24]} bxc6 {[%emt 0:02:22]} 12. Bg3 {[%emt 0:01:13]} O-O {[%emt 0:01:02]} 13. Nd2 {[%emt 0:04:09]} f6 {[%emt 0:14:53]} 14. Nef3 {[%emt 0:00:08]} e5 {[%emt 0:00:17]} 15. Nb3 {[%emt 0:01:52]} Bc2 {[%emt 0:08:23]} 16. Qa5 {[%emt 0:06:15]} Nf5 {[%emt 0:05:49]} 17. Qxc7 {[%emt 0:02:39]} Bxc7 {[%emt 0:00:05]} 18. Nc5 {[%emt 0:00:12]} Nxg3 {[%emt 0:00:51]} 19. hxg3 {[%emt 0:00:08]} Rfe8 {[%emt 0:00:36]} 20. Kd2 {[%emt 0:00:58]} Bf5 {[%emt 0:01:39]} 21. Rhe1 {[%emt 0:03:43]} a5 {[%emt 0:01:07]} 22. Re3 {[%emt 0:03:09]} a4 {[%emt 0:03:38]} 23. Rae1 {[%emt 0:02:46]} e4 {[%emt 0:01:05]} 24. Ng1 {[%emt 0:02:41]} Reb8 {[%emt 0:00:44]} 25. Kc1 {[%emt 0:02:27]} Bd6 {[%emt 0:01:00]} 26. Ne2 {[%emt 0:01:30]} Ra5 {[%emt 0:01:58]} 27. f3 {[%emt 0:01:26]} Bxc5 {[%emt 0:24:29]} 28. dxc5 {[%emt 0:00:05]} Rab5 {[%emt 0:00:59]} 29. c4 {[%emt 0:01:56]} Rxc5 {[%emt 0:06:59]} 30. Rc3 {[%emt 0:00:24]} exf3 {[%emt 0:00:31]} 31. gxf3 {[%emt 0:00:07]} Re8 {[%emt 0:00:29]} 32. Kd2 {[%emt 0:04:26]} d4 {[%emt 0:03:53]} 33. Rcc1 {[%emt 0:02:46]} Rd8 {[%emt 0:01:49]} 34. g4 {[%emt 0:03:00]} Bg6 {[%emt 0:00:48]} 35. Nf4 {[%emt 0:00:05]} Rb8 {[%emt 0:00:48]} 36. Nxg6 {[%emt 0:07:48]} Rxb2+ {[%emt 0:00:50]} 37. Kd3 {[%emt 0:00:05]} hxg6 {[%emt 0:00:04]} 38. Kxd4 {[%emt 0:00:14]} Ra5 {[%emt 0:01:32]} 39. Rb1 {[%emt 0:01:59]} a3 {[%emt 0:01:40]} 40. Kc3 {[%emt 0:00:04]} Rxa2 {[%emt 0:03:01]} 41. Rb8+ {[%emt 0:00:06]} Kf7 {[%emt 0:00:06]} 42. Rb7+ {[%emt 0:00:06]} Kf8 {[%emt 0:00:10]} 43. Rd1 {[%emt 0:02:09]} Re2 {[%emt 0:00:34]} 44. Rdd7 {[%emt 0:00:15]} a2 {[%emt 0:00:22]} 45. Kd3 {[%emt 0:04:55]} a1=Q {[%emt 0:00:08]} 46. Kxe2 {[%emt 0:00:40]} Qe5+ {[%emt 0:00:05]} 47. Kd3 {[%emt 0:00:41]} Ra3+ {[%emt 0:00:04]} 48. Kd2 {[%emt 0:00:11]} Qe3+ {[%emt 0:00:08]} 0-1

[Event "8th Palmanova Open 2019"]
[Site "Palmanova"]
[Date "2019.12.08"]
[Round "5.3"]
[White "Dappiano, Andrea"]
[Black "Savanovic, Aleksandar"]
[Result "0-1"]
[ECO "C45"]
[WhiteElo "2305"]
[BlackElo "2407"]
[Annotator "NA"]
[PlyCount "112"]
[EventDate "2019.12.06"]
[EventType "swiss"]
[EventCountry "ITA"]
[SourceTitle "playchess.com"]
[Source "ChessBase"]
[SourceQuality "1"]
[TimeControl "5400+30"]

1. e4 {[%emt 0:00:00]} e5 {[%emt 0:00:00]} 2. Nf3 {[%emt 0:00:00]} Nc6 {[%emt 0:00:00]} 3. d4 {[%emt 0:00:00]} exd4 {[%emt 0:00:00]} 4. Nxd4 {[%emt 0:00:00]} Nf6 {[%emt 0:00:26]} 5. Nxc6 {[%emt 0:00:18]} bxc6 {[%emt 0:00:08]} 6. e5 {[%emt 0:00:02]} Qe7 {[%emt 0:00:10]} 7. Qe2 {[%emt 0:00:03]} Nd5 {[%emt 0:00:08]} 8. c4 {[%emt 0:00:04]} Qb4+ {[%emt 0:00:14]} 9. Qd2 {[%emt 0:04:06]} Qxd2+ {[%emt 0:02:13]} 10. Bxd2 {[%emt 0:03:15]} Nb4 {[%emt 0:04:06]} 11. Na3 {[%emt 0:08:13]} Bc5 {[%emt 0:06:12]} 12. Be2 {[%emt 0:16:22]} a5 {[%emt 0:02:50]} 13. Bc3 {[%emt 0:01:21]} O-O {[%emt 0:00:58]} 14. O-O {[%emt 0:01:28]} d6 {[%emt 0:05:50]} 15. Bf3 {[%emt 0:12:05]} Be6 {[%emt 0:02:44]} 16. Rfd1 {[%emt 0:02:53]} Rab8 {[%emt 0:01:28]} 17. exd6 {[%emt 0:06:17]} cxd6 {[%emt 0:00:57]} 18. Rd2 {[%emt 0:06:03]} Rfc8 {[%emt 0:02:16]} 19. Nc2 {[%emt 0:06:25]} Bxc4 {[%emt 0:03:48]} 20. Nd4 {[%emt 0:00:20]} Bxd4 {[%emt 0:03:55]} 21. Bxd4 {[%emt 0:06:01]} Bxa2 {[%emt 0:12:48]} 22. Bc3 {[%emt 0:01:41]} Bd5 {[%emt 0:02:02]} 23. Rxa5 {[%emt 0:01:44]} Bxf3 {[%emt 0:00:35]} 24. Bxb4 {[%emt 0:01:44]} Rxb4 {[%emt 0:01:07]} 25. gxf3 {[%emt 0:00:03]} d5 {[%emt 0:08:55]} 26. Rc2 {[%emt 0:03:33]} g6 {[%emt 0:00:17]} 27. Rxd5 {[%emt 0:02:54]} Rxb2 {[%emt 0:00:17]} 28. Rcc5 {[%emt 0:00:31]} cxd5 {[%emt 0:03:28]} 29. Rxc8+ {[%emt 0:00:02]} Kg7 {[%emt 0:00:07]} 30. Rd8 {[%emt 0:00:24]} Rb5 {[%emt 0:01:29]} 31. Kf1 {[%emt 0:02:30]} Kf6 {[%emt 0:00:08]} 32. Rd6+ {[%emt 0:00:48]} Ke5 {[%emt 0:00:13]} 33. Rd7 {[%emt 0:00:05]} Ke6 {[%emt 0:00:09]} 34. Rd8 {[%emt 0:00:08]} Rb1+ {[%emt 0:00:59]} 35. Kg2 {[%emt 0:00:09]} Rb7 {[%emt 0:00:08]} 36. Kf1 {[%emt 0:00:21]} Rd7 {[%emt 0:00:09]} 37. Rh8 {[%emt 0:00:12]} h5 {[%emt 0:00:07]} 38. Ra8 {[%emt 0:01:22]} Ke5 {[%emt 0:00:18]} 39. Ra6 {[%emt 0:00:28]} Kd4 {[%emt 0:02:45]} 40. Ra4+ {[%emt 0:01:25]} Kc3 {[%emt 0:00:12]} 41. Ra3+ {[%emt 0:00:21]} Kb4 {[%emt 0:00:09]} 42. Ra8 {[%emt 0:00:51]} Re7 {[%emt 0:00:20]} 43. Rd8 {[%emt 0:01:27]} Kc4 {[%emt 0:00:06]} 44. f4 {[%emt 0:00:11]} d4 {[%emt 0:00:06]} 45. f5 {[%emt 0:00:03]} gxf5 {[%emt 0:00:08]} 46. Rc8+ {[%emt 0:01:19]} Kb3 {[%emt 0:00:08]} 47. Rd8 {[%emt 0:02:18]} Kc3 {[%emt 0:00:11]} 48. Rc8+ {[%emt 0:00:35]} Kd2 {[%emt 0:00:07]} 49. Ra8 {[%emt 0:00:48]} Re1+ {[%emt 0:00:25]} 50. Kg2 {[%emt 0:00:16]} d3 {[%emt 0:00:05]} 51. Ra2+ {[%emt 0:00:10]} Kc3 {[%emt 0:00:07]} 52. Ra3+ {[%emt 0:00:15]} Kc4 {[%emt 0:00:25]} 53. Ra4+ {[%emt 0:00:18]} Kb3 {[%emt 0:00:14]} 54. Rd4 {[%emt 0:00:05]} Kc3 {[%emt 0:00:05]} 55. Rd8 {[%emt 0:00:17]} d2 {[%emt 0:00:08]} 56. Rc8+ {[%emt 0:00:05]} Kb4 {[%emt 0:00:07]} 0-1